fUST/lending_fUST_20250925
["ID","MTS","AMOUNT","RATE_DAILY","PERIOD"]
[387457896,1758733833837,-500.0,0.00019346,2]
[387457897,1758733833847,-373.92624683,0.00019346,2]
[387457898,1758733833857,-500.0,0.00019346,2]
[387457899,1758733833866,-500.0,0.00019346,2]
[387457900,1758733833877,-500.0,0.00019346,2]
[387457901,1758733833886,-500.0,0.00019346,2]
[387457902,1758733833895,-500.0,0.00019346,2]
[387457903,1758733833904,-352.03747217,0.00019346,2]
[387457904,1758733833915,-500.0,0.00019346,2]
[387457905,1758733833924,-500.0,0.00019346,2]
[387457906,1758733833933,-500.0,0.00019346,2]
[387457907,1758733833942,-447.58592335,0.00019346,2]
[387457908,1758733833952,-500.0,0.00019346,2]
[387457909,1758733833961,-500.0,0.00019346,2]
[387457910,1758733833971,-500.0,0.00019346,2]
[387457911,1758733833981,-500.0,0.00019346,2]
[387457912,1758733833990,-500.0,0.00019346,2]
[387457913,1758733834000,-500.0,0.00019346,2]
[387457914,1758733834009,-500.0,0.00019346,2]
[387457915,1758733834019,-500.0,0.00019346,2]
[387457916,1758733834028,-500.0,0.00019346,2]
[387457917,1758733834038,-500.0,0.00019346,2]
[387457918,1758733834047,-500.0,0.00019346,2]
[387457919,1758733834056,-500.0,0.00019346,2]
[387457920,1758733834065,-500.0,0.00019346,2]
[387457921,1758733834074,-500.0,0.00019346,2]
[387457922,1758733834083,-500.0,0.00019346,2]
[387457923,1758733834092,-500.0,0.00019346,2]
[387457924,1758733834101,-500.0,0.00019346,2]
[387457925,1758733834110,-500.0,0.00019346,2]
[387457926,1758733834120,-500.0,0.00019346,2]
[387457927,1758733834129,-500.0,0.00019346,2]
[387457928,1758733834139,-500.0,0.00019346,2]
[387457929,1758733834148,-500.0,0.00019346,2]
[387457930,1758733834157,-500.0,0.00019346,2]
[387457931,1758733834166,-500.0,0.00019346,2]
[387457932,1758733834175,-500.0,0.00019346,2]
[387457933,1758733834185,-500.0,0.00019346,2]
[387457934,1758733834194,-500.0,0.00019346,2]
[387457935,1758733834203,-338.20228855,0.00019346,2]
[387457936,1758733834212,-500.0,0.00019346,2]
[387457937,1758733834221,-500.0,0.00019346,2]
[387457939,1758733834231,-500.0,0.00019346,2]
[387457941,1758733834241,-500.0,0.00019346,2]
[387457942,1758733834251,-500.0,0.00019346,2]
[387457943,1758733834261,-500.0,0.00019346,2]
[387457945,1758733834270,-602.69851628,0.00019346,2]
[387457946,1758733834280,-500.0,0.00019349,2]
[387457947,1758733834289,-500.0,0.00019349,2]
[387457949,1758733834298,-500.0,0.00019349,2]
[387457950,1758733834308,-500.0,0.00019349,2]
[387457951,1758733834317,-500.0,0.0001935,2]
[387457952,1758733834327,-500.0,0.0001935,2]
[387457953,1758733834336,-500.0,0.00019351,2]
[387457954,1758733834346,-500.0,0.00019351,2]
[387457955,1758733834355,-500.0,0.00019351,2]
[387457956,1758733834365,-500.0,0.00019351,2]
[387457957,1758733834375,-500.0,0.00019351,2]
[387457958,1758733834384,-500.0,0.00019351,2]
[387457959,1758733834393,-500.0,0.00019351,2]
[387457960,1758733834403,-500.0,0.00019351,2]
[387457961,1758733834412,-500.0,0.00019351,2]
[387457962,1758733834422,-500.0,0.00019351,2]
[387457963,1758733834431,-500.0,0.00019351,2]
[387457964,1758733834441,-500.0,0.00019351,2]
[387457965,1758733834451,-500.0,0.00019351,2]
[387457966,1758733834461,-500.0,0.00019351,2]
[387457967,1758733834471,-500.0,0.00019351,2]
[387457968,1758733834481,-378.34,0.00019351,2]
[387457969,1758733834490,-500.0,0.00019351,2]
[387457970,1758733834500,-500.0,0.00019351,2]
[387457971,1758733834510,-500.0,0.00019351,2]
[387457972,1758733834519,-500.0,0.00019351,2]
[387457973,1758733834528,-595.38906837,0.00019351,2]
[387457974,1758733834538,-287.998541,0.00019351,2]
[387457975,1758733834548,-562.14738863,0.00019351,2]
[387457976,1758733834557,-427.18591965,0.00019351,2]
[387457977,1758733834566,-562.14738863,0.00019351,2]
[387457978,1758733834576,-562.14738863,0.00019351,2]
[387457979,1758733834585,-562.14738863,0.00019351,2]
[387457980,1758733834595,-562.14738863,0.00019351,2]
[387457981,1758733834605,-562.14738863,0.00019351,2]
[387457982,1758733834614,-562.14738863,0.00019351,2]
[387457983,1758733834624,-562.14738863,0.00019351,2]
[387457984,1758733834634,-562.14738863,0.00019351,2]
[387457985,1758733834643,-562.14738863,0.00019351,2]
[387457986,1758733834653,-562.14738863,0.00019351,2]
[387457987,1758733834663,-562.14738863,0.00019351,2]
[387457988,1758733834672,-562.14738863,0.00019351,2]
[387457989,1758733834682,-562.14738863,0.00019351,2]
[387457990,1758733834692,-562.14738863,0.00019351,2]
[387457991,1758733834702,-562.14738863,0.00019351,2]
[387457992,1758733834712,-562.14738863,0.00019351,2]
[387457993,1758733834722,-562.14738863,0.00019351,2]
[387457994,1758733834731,-562.14738863,0.00019351,2]
[387457995,1758733834740,-562.14738863,0.00019351,2]
[387457996,1758733834753,-562.14738863,0.00019351,2]
[387457997,1758733834763,-562.14738863,0.00019351,2]
[387457998,1758733834772,-562.14738863,0.00019351,2]
[387457999,1758733834783,-562.14738863,0.00019351,2]
[387458000,1758733834794,-590.25475804,0.00019351,2]
[387458001,1758733834804,-590.25475804,0.00019351,2]
[387458002,1758733834813,-590.25475804,0.00019351,2]
[387458003,1758733834825,-590.25475804,0.00019351,2]
[387458004,1758733834835,-590.25475804,0.00019351,2]
[387458005,1758733834845,-590.25475804,0.00019351,2]
[387458006,1758733834854,-590.25475804,0.00019351,2]
[387458007,1758733834864,-590.25475804,0.00019351,2]
[387458008,1758733834873,-370000.0,0.00019352,2]
[387458009,1758733834883,-500.0,0.00019373,2]
[387458010,1758733834893,-500.0,0.00019373,2]
[387458011,1758733834902,-506.04110339,0.00019373,2]
[387458012,1758733834912,-500.0,0.00019373,2]
[387458013,1758733834921,-500.0,0.00019373,2]
[387458014,1758733834931,-500.0,0.00019373,2]
[387458015,1758733834941,-500.0,0.00019373,2]
[387458016,1758733834951,-500.0,0.00019373,2]
[387458017,1758733834960,-500.0,0.00019373,2]
[387458018,1758733834970,-480.0,0.00019452,2]
[387458019,1758733834979,-484.97338341,0.00019452,2]
[387458020,1758733834989,-302.39,0.00019452,2]
[387458021,1758733834998,-453.38032696,0.00019452,2]
[387458022,1758733835007,-482.49026979,0.00019452,2]
[387458023,1758733835017,-190.88956603,0.00019452,2]
[387458024,1758733835026,-530.84,0.00019452,2]
[387458025,1758733835035,-480.0,0.00019452,2]
[387458026,1758733835044,-361.36,0.00019452,2]
[387458027,1758733835053,-480.0,0.00019452,2]
[387458028,1758733835062,-173.31755778,0.00019452,2]
[387458029,1758733835072,-480.0,0.00019452,2]
[387458030,1758733835081,-482.3610513,0.00019452,2]
[387458031,1758733835090,-480.0,0.00019452,2]
[387458032,1758733835099,-480.0,0.00019452,2]
[387458033,1758733835109,-480.0,0.00019452,2]
[387458034,1758733835118,-480.0,0.00019452,2]
[387458035,1758733835128,-480.0,0.00019452,2]
[387458036,1758733835137,-276.16,0.00019452,2]
[387458037,1758733835147,-480.0,0.00019452,2]
[387458038,1758733835156,-480.0,0.00019452,2]
[387458039,1758733835166,-480.0,0.00019452,2]
[387458040,1758733835175,-372.43052525,0.00019452,2]
[387458041,1758733835185,-480.0,0.00019726,2]
[387458042,1758733835195,-480.0,0.00019726,2]
[387458043,1758733835205,-480.0,0.00019726,2]
[387458044,1758733835214,-480.0,0.00019726,2]
[387458045,1758733835223,-480.0,0.00019726,2]
[387458046,1758733835232,-605.11212469,0.00019726,2]
[387458047,1758733835242,-360.33,0.00019726,2]
[387458048,1758733835252,-480.0,0.00019726,2]
[387458049,1758733835367,-236.15,0.00019726,2]
[387458050,1758733835378,-1705.26929386,0.000199,2]
[387458051,1758733835388,-500.0,0.00019921,2]
[387458052,1758733835397,-152.79750687,0.00019921,2]
[387458053,1758733835406,-500.0,0.00019921,2]
[387458054,1758733835416,-895.98553045,0.00019921,2]
[387458055,1758733835426,-1000.0,0.00019921,2]
[387458056,1758733835437,-480.0,0.0002,2]
[387458057,1758733835446,-480.0,0.0002,2]
[387458058,1758733835457,-180.84,0.0002,2]
[387458059,1758733835466,-480.0,0.0002,2]
[387458060,1758733835475,-480.0,0.0002,2]
[387458061,1758733835485,-166.58,0.0002,2]
[387458062,1758733835495,-480.0,0.00020273,2]
[387458063,1758733835506,-480.0,0.00020273,2]
[387458064,1758733835515,-480.0,0.00020273,2]
[387458065,1758733835526,-480.0,0.00020273,2]
[387458066,1758733835536,-1500.0,0.00020468,2]
[387458067,1758733835546,-480.0,0.00020547,2]
[387458068,1758733835556,-480.0,0.00020547,2]
[387458069,1758733835566,-480.0,0.00020547,2]
[387458070,1758733835576,-150.0,0.00020563,2]
[387458071,1758733835585,-164.1255297,0.0002058,2]
[387458072,1758733835595,-326.53,0.00020799,2]
[387458073,1758733835604,-480.0,0.00020821,2]
[387458074,1758733835613,-480.0,0.00020821,2]
[387458075,1758733835623,-480.0,0.00020821,2]
[387458076,1758733835632,-420.0,0.00020899,2]
[387458077,1758733835641,-1705.26929375,0.00020972,2]
[387458078,1758733835651,-500.0,0.0002105,2]
[387458079,1758733835660,-480.0,0.00021095,2]
[387458080,1758733835670,-494.9,0.00021095,2]
[387458081,1758733835679,-480.0,0.00021095,2]
[387458082,1758733835689,-480.0,0.00021369,2]
[387458083,1758733835699,-480.0,0.00021369,2]
[387458084,1758733835709,-500.0,0.00021598,2]
[387458085,1758733835719,-233.62170814,0.00021613,2]
[387458086,1758733835728,-160.0,0.00021613,2]
[387458087,1758733835738,-160.0,0.00021613,2]
[387458088,1758733835750,-532.2324375,0.00021613,2]
[387458089,1758733835761,-307.6,0.00021643,2]
[387458090,1758733835772,-480.0,0.00021643,2]
[387458091,1758733835781,-289.06502774,0.00021917,2]
[387458092,1758733835792,-355.0,0.00021971,2]
[387458093,1758733835802,-1705.26929375,0.00022044,2]
[387458094,1758733835812,-6981.41,0.000223,2]
[387458095,1758733835822,-153.0,0.00022376,2]
[387458096,1758733835835,-150.0,0.00022419,2]
[387458097,1758733835846,-164.70303543,0.00022499,2]
[387458098,1758733835856,-410.0,0.00022758,2]
[387458099,1758733835866,-587.0,0.00022776,2]
[387458100,1758733835878,-160.0,0.00023,2]
[387458101,1758733835887,-1705.26929375,0.00023116,2]
[387458102,1758733835897,-1328.512129,0.000232,2]
[387458103,1758733835906,-691.96,0.00023287,2]
[387458104,1758733835915,-205.809,0.00024075,5]
[387458105,1758733835924,-700.0,0.00024152,2]
[387458106,1758733835934,-1705.26929375,0.00024187,2]
[387458107,1758733835943,-203.2,0.00024287,2]
[387458108,1758733835953,-200.0,0.00024553,2]
[387458109,1758733835962,-250.0,0.00024553,2]
[387458110,1758733835972,-350.0,0.00024553,2]
[387458111,1758733835982,-151.0,0.00024553,2]
[387458112,1758733835991,-201.93286098,0.00024553,2]
[387458113,1758733836000,-500.0,0.00024553,2]
[387458114,1758733836009,-500.0,0.00024553,2]
[387458115,1758733836019,-823.0,0.00024821,2]
[387458116,1758733836029,-500.0,0.00024873,2]
[387458117,1758733836039,-500.0,0.00024873,2]
[387458118,1758733836048,-504.07436454,0.00024873,2]
[387458119,1758733836058,-500.0,0.00024873,2]
[387458120,1758733836068,-654621.308091,0.000249,2]
[387458121,1758733836077,-691.96,0.00025205,4]
[387458122,1758733836086,-700.0,0.00025248,2]
[387458123,1758733836096,-1705.26929375,0.00025259,3]
[387458124,1758733836106,-500.0,0.00025421,2]
[387458125,1758733836117,-500.0,0.00025421,2]
[387458126,1758733836127,-410.0,0.00025758,2]
[387458127,1758733836136,-164.70303543,0.00025919,2]
[387458128,1758733836145,-270.93,0.00026156,2]
[387458129,1758733836155,-153.0,0.00026225,2]
[387458130,1758733836164,-1705.26929375,0.00026331,5]
[387458131,1758733836173,-700.0,0.00026344,2]
[387458132,1758733836182,-380.9760507,0.00026575,2]
[387458133,1758733836193,-6981.41,0.000266,2]
[387458134,1758733836202,-290.54009163,0.00026616,2]
[387458135,1758733836211,-153.0,0.00026986,2]
[387458136,1758733836221,-1152.0,0.0002705,2]
[387458137,1758733836230,-691.96,0.00027123,6]
[387458138,1758733836239,-500.0,0.0002722,2]
[387458139,1758733836249,-151.0,0.0002722,2]
[387458140,1758733836259,-151.0,0.0002722,2]
[387458141,1758733836269,-3917.7904887,0.0002734,2]
[387458142,1758733836279,-150.0,0.00027397,5]
[387458143,1758733836290,-1705.26929375,0.00027403,7]
[387458144,1758733836299,-158.14206199,0.0002744,2]
[387458145,1758733836310,-1538652.22357019,0.0002744,2]
[387458146,1758733836321,-151.0,0.0002744,3]
[387458147,1758733836330,-151.0,0.0002744,3]
[387458148,1758733836340,-154.97067128,0.0002744,3]
[387458149,1758733836349,-290.305379,0.0002744,7]
[387458150,1758733836359,-154.182631,0.0002744,7]
[387458151,1758733836368,-151.0,0.0002744,7]
[387458152,1758733836377,-151.0,0.0002744,7]
[387458153,1758733836386,-151.0,0.0002744,7]
[387458154,1758733836396,-777.0809383,0.0002744,2]
[387458155,1758733836405,-151.0,0.0002744,7]
[387458156,1758733836414,-151.0,0.0002744,7]
[387458157,1758733836424,-151.0,0.0002744,7]
[387458158,1758733836435,-151.0,0.0002744,7]
[387458159,1758733836445,-157.46469,0.0002744,7]
[387458160,1758733836454,-151.0,0.0002744,7]
[387458161,1758733836464,-222.166572,0.0002744,7]
[387458162,1758733836473,-151.0,0.0002744,7]
[387458163,1758733836482,-151.0,0.0002744,7]
[387458164,1758733836491,-151.0,0.0002744,7]
[387458165,1758733836501,-151.0,0.0002744,7]
[387458166,1758733836510,-151.0,0.0002744,7]
[387458167,1758733836519,-151.0,0.0002744,7]
[387458168,1758733836529,-151.0,0.0002744,7]
[387458169,1758733836539,-151.0,0.0002744,7]
[387458170,1758733836549,-151.0,0.0002744,7]
[387458171,1758733836559,-700.0,0.0002744,7]
[387458172,1758733836569,-500.0,0.00027473,5]
[387458173,1758733836578,-500.0,0.00027494,2]
[387458174,1758733836587,-151.0,0.00027494,2]
[387458175,1758733836597,-151.0,0.00027494,2]
[387458176,1758733836607,-1726.4,0.000275,60]
[387458177,1758733836616,-45354.07272877,0.000275,2]
[387458178,1758733836625,-155.44,0.00027525,15]
[387458179,1758733836635,-155.44,0.00027625,15]
[387458180,1758733836644,-155.44,0.00027725,15]
[387458181,1758733836654,-500.0,0.00027768,2]
[387458182,1758733836663,-151.0,0.00027768,2]
[387458183,1758733836673,-246.0,0.00027768,2]
[387458184,1758733836683,-155.44,0.00027825,15]
[387458185,1758733836693,-522.6457982,0.000279,2]
[387458186,1758733836704,-522.64579816,0.000279,2]
[387458187,1758733836714,-522.64579816,0.000279,2]
[387458188,1758733836723,-155.44,0.00027925,15]
[387458189,1758733836733,-250.0,0.00027945,5]
[387458190,1758733836742,-208.0,0.0002797,30]
[387458191,1758733836755,-532.2324375,0.00028,10]
[387458192,1758733836764,-532.2324375,0.00028,10]
[387458193,1758733836774,-17000.0,0.00028,2]
[387458194,1758733836783,-1200.29121968,0.00028,2]
[387458195,1758733836794,-195.23742533,0.00028,2]
[387458196,1758733836803,-233.62170814,0.00028,3]
[387458197,1758733836812,-605.96559382,0.00028,3]
[387458198,1758733836823,-1078.02,0.00028,2]
[387458199,1758733836833,-522.64579816,0.00028007,2]
[387458200,1758733836842,-500.0,0.00028021,5]
[387458201,1758733836851,-338.67,0.00028024,2]
[387458202,1758733836861,-155.44,0.00028025,15]
[387458203,1758733836871,-500.0,0.00028042,2]
[387458204,1758733836880,-198.0,0.00028042,2]
[387458205,1758733836889,-6981.41,0.000281,2]
[387458206,1758733836899,-155.44,0.00028125,15]
[387458207,1758733836909,-1078.02,0.0002814,2]
[387458208,1758733836919,-155.44,0.00028225,15]
[387458209,1758733836928,-522.64579816,0.00028229,2]
[387458210,1758733836937,-700.0,0.00028262,7]
[387458211,1758733836946,-1078.02,0.0002828,2]
[387458212,1758733836957,-500.0,0.00028316,2]
[387458213,1758733836966,-155.44,0.00028325,15]
[387458214,1758733836975,-208.0,0.000284,30]
[387458215,1758733836984,-1078.02,0.0002842,2]
[387458216,1758733836994,-155.44,0.00028425,15]
[387458217,1758733837003,-522.64579816,0.00028451,2]
[387458218,1758733837012,-1705.26929375,0.00028475,9]
[387458219,1758733837021,-350.0,0.00028493,5]
[387458220,1758733837033,-1595.89977196,0.000285,7]
[387458221,1758733837042,-233.62170814,0.000285,7]
[387458222,1758733837051,-532.2324375,0.000285,7]
[387458223,1758733837061,-155.44,0.00028525,15]
[387458224,1758733837071,-1078.02,0.0002856,2]
[387458225,1758733837080,-500.0,0.0002859,2]
[387458226,1758733837089,-155.44,0.00028625,15]
[387458227,1758733837099,-522.64579816,0.00028673,2]
[387458228,1758733837108,-155.44,0.00028725,15]
[387458229,1758733837117,-410.0,0.00028758,2]
[387458230,1758733837126,-152.0,0.000288,120]
[387458231,1758733837135,-168.99642743,0.000288,7]
[387458232,1758733837145,-155.44,0.00028825,15]
[387458233,1758733837154,-208.0,0.0002883,30]
[387458234,1758733837163,-500.0,0.00028864,2]
[387458235,1758733837172,-522.64579816,0.00028896,2]
[387458236,1758733837181,-155.47060003,0.00028925,15]
[387458237,1758733837190,-70705.22691436,0.00028989,2]
[387458238,1758733837199,-150.0,0.00029,2]
[387458239,1758733837209,-153.62,0.00029,2]
[387458240,1758733837218,-2001.39,0.00029,3]
[387458241,1758733837227,-691.96,0.00029041,8]
[387458242,1758733837237,-450.0,0.00029041,5]
[387458243,1758733837246,-700.0,0.00029084,7]
[387458244,1758733837255,-522.64579816,0.00029118,2]
[387458245,1758733837264,-500.0,0.00029138,2]
[387458246,1758733837273,-2000.0,0.000292,2]
[387458247,1758733837283,-2008.4,0.000292,2]
[387458248,1758733837292,-208.0,0.0002926,30]
[387458249,1758733837301,-160.0,0.00029268,5]
[387458250,1758733837311,-207.56747621,0.00029268,5]
[387458251,1758733837321,-150.01,0.00029287,15]
[387458252,1758733837330,-211.21,0.00029294,60]
[387458253,1758733837339,-164.70303543,0.0002934,2]
[387458254,1758733837348,-522.64579816,0.0002934,2]
[387458255,1758733837358,-178.0,0.00029358,60]
[387458256,1758733837367,-151.0,0.00029359,7]
[387458257,1758733837378,-151.0,0.00029359,7]
[387458258,1758733837388,-960.49,0.00029361,60]
[387458259,1758733837398,-151.0,0.00029363,7]
[387458260,1758733837408,-151.0,0.00029363,7]
[387458261,1758733837418,-151.0,0.00029363,7]
[387458262,1758733837427,-151.0,0.00029363,7]
[387458263,1758733837438,-151.0,0.00029363,7]
[387458264,1758733837448,-151.0,0.00029363,7]
[387458265,1758733837457,-239.532352,0.00029363,7]
[387458266,1758733837467,-151.0,0.00029363,7]
[387458267,1758733837478,-151.0,0.00029363,7]
[387458268,1758733837488,-151.0,0.00029363,7]
[387458269,1758733837497,-151.0,0.00029363,7]
[387458270,1758733837507,-151.0,0.00029363,7]
[387458271,1758733837516,-151.0,0.00029363,7]
[387458272,1758733837525,-151.0,0.00029363,7]
[387458273,1758733837535,-151.0,0.00029363,7]
[387458274,1758733837545,-1221409.84297546,0.00029363,20]
[387458275,1758733837566,-701.86961408,0.00029363,20]
[387458285,1758733838549,-459.0,0.0002744,7]
[387458286,1758733838559,-151.0,0.0002744,7]
[387458287,1758733838569,-151.0,0.0002744,7]
[387458288,1758733838612,-459.0,0.0002744,7]
[387458289,1758733838625,-459.0,0.00029363,7]
[387458290,1758733838635,-459.0,0.00029363,7]
[387458291,1758733838645,-151.0,0.00029363,7]
[387458292,1758733838655,-151.0,0.00029363,7]
[387458293,1758733838664,-459.0,0.00029363,7]
[387458294,1758733838673,-459.0,0.00029363,7]
[387458295,1758733838683,-5552.27407051,0.00029363,20]
[387458296,1758733838695,-16449.99049431,0.00029363,20]
[387458297,1758733838707,-1130.04135137,0.00029363,20]
[387458299,1758733838718,-5105.4704378,0.00029363,20]
[387458300,1758733838733,-5408.50309,0.00029363,20]
[387458301,1758733838773,-39430.67579929,0.00029363,20]
[387458302,1758733838784,-298.89885945,0.00029363,20]
[387458344,1758733840617,-459.0,0.0002744,7]
[387458345,1758733840627,-151.0,0.0002744,7]
[387458346,1758733840638,-555.1,0.00029353,10]
[387458347,1758733840647,-151.0,0.00029363,7]
[387458348,1758733840657,-459.0,0.00029363,7]
[387458349,1758733840667,-151.0,0.00029363,7]
[387458350,1758733840677,-459.0,0.00029363,7]
[387458351,1758733840686,-10014.36290864,0.00029363,20]
[387458352,1758733840702,-1859.62389554,0.00029363,20]
[387458353,1758733840723,-9166.67945888,0.00029363,20]
[387458354,1758733840735,-512.53526965,0.00029363,20]
[387458362,1758733843913,-459.0,0.0002744,7]
[387458363,1758733843923,-151.0,0.0002744,7]
[387458364,1758733843933,-151.0,0.00029363,7]
[387458365,1758733843943,-151.0,0.00029363,7]
[387458367,1758733843954,-459.0,0.00029363,7]
[387458369,1758733843963,-459.0,0.00029363,7]
[387458371,1758733843973,-151.0,0.00029363,7]
[387458373,1758733843983,-151.0,0.00029363,7]
[387458374,1758733843992,-5403.68797944,0.00029363,20]
[387458381,1758733846889,-151.0,0.0002744,7]
[387458382,1758733846899,-151.0,0.00029363,7]
[387458383,1758733846909,-195.568435,0.00029363,7]
[387458384,1758733846919,-119107.04767242,0.00029363,20]
[387458385,1758733846943,-4262.33506886,0.00029363,20]
[387458388,1758734388620,204.52841022,0.00018978,2]
[387458390,1758734523346,300.0,0.00019176,2]
[387458391,1758734578772,622.48,0.00019168,3]
[387458392,1758734583868,300.0,0.00019176,2]
[387458393,1758734643498,300.0,0.00019176,2]
[387458394,1758734645820,17788.28855435,0.00019177,2]
[387458395,1758734697604,-185.878852,0.00019177,2]
[387458399,1758734788050,-198.56085718,0.00019176,2]
[387458400,1758734818154,151.0,0.000272,120]
[387458405,1758734863077,310.69623986,0.00019078,2]
[387458407,1758734869720,1239.06159269,0.00018,2]
[387458408,1758734876082,-300.0,0.00019175,2]
[387458409,1758734876111,-1200.0,0.00019175,2]
[387458410,1758734887676,-763.24044022,0.00019175,2]
[387458411,1758734887753,622.44,0.00019168,3]
[387458412,1758734896372,3401.92623856,0.00018,2]
[387458413,1758734897687,-500.0,0.00019176,2]
[387458414,1758734897715,-500.0,0.00019176,2]
[387458415,1758734897742,-500.0,0.00019176,2]
[387458416,1758734897770,-449.3178628,0.00019176,2]
[387458417,1758734897797,-500.0,0.00019176,2]
[387458418,1758734897826,-500.0,0.00019176,2]
[387458419,1758734897853,-500.0,0.00019176,2]
[387458420,1758734897881,-500.0,0.00019176,2]
[387458421,1758734897907,-186.79716349,0.00019176,2]
[387458422,1758734897933,-500.0,0.00019176,2]
[387458423,1758734897961,-227.77994742,0.00019176,2]
[387458425,1758734915524,31366.29733367,0.00015,2]
[387458427,1758734917131,586.17010694,0.000149,2]
[387458428,1758734917728,-500.0,0.00019175,2]
[387458429,1758734917756,-500.0,0.00019175,2]
[387458430,1758734917783,-500.0,0.00019175,2]
[387458431,1758734917812,-500.0,0.00019175,2]
[387458432,1758734917841,-500.0,0.00019175,2]
[387458433,1758734917869,-568.32130804,0.00019175,2]
[387458434,1758734917898,-500.0,0.00019175,2]
[387458435,1758734917925,-500.0,0.00019175,2]
[387458436,1758734917951,-500.0,0.00019175,2]
[387458437,1758734917981,-363.36738392,0.00019175,2]
[387458438,1758734918253,-136.63261608,0.00019175,2]
[387458439,1758734918281,-194.93178628,0.00019175,2]
[387458440,1758734918311,-500.0,0.00019175,2]
[387458441,1758734918341,-500.0,0.00019175,2]
[387458442,1758734918368,-500.0,0.00019175,2]
[387458443,1758734918396,-500.0,0.00019175,2]
[387458444,1758734918426,-500.0,0.00019175,2]
[387458445,1758734918455,-500.0,0.00019175,2]
[387458446,1758734918485,-500.0,0.00019175,2]
[387458447,1758734918514,-338.32968985,0.00019175,2]
[387458448,1758734918541,-500.0,0.00019175,2]
[387458449,1758734918569,-160.22181558,0.00019175,2]
[387458450,1758734918708,9234.80007596,0.00018,2]
[387458453,1758734925228,260.02436423,0.00015,2]
[387458456,1758734927722,-339.77818442,0.00019175,2]
[387458457,1758734927752,-500.0,0.00019175,2]
[387458458,1758734927780,-500.0,0.00019175,2]
[387458459,1758734927809,-500.0,0.00019175,2]
[387458460,1758734927836,-500.0,0.00019175,2]
[387458461,1758734927866,-500.0,0.00019175,2]
[387458462,1758734927895,-500.0,0.00019175,2]
[387458463,1758734927924,-500.0,0.00019175,2]
[387458464,1758734927954,-500.0,0.00019175,2]
[387458465,1758734927982,-500.0,0.00019175,2]
[387458466,1758734928178,-500.0,0.00019175,2]
[387458467,1758734928206,-500.0,0.00019175,2]
[387458468,1758734928237,-500.0,0.00019175,2]
[387458469,1758734928268,-500.0,0.00019175,2]
[387458470,1758734928299,-500.0,0.00019175,2]
[387458471,1758734928329,-500.0,0.00019175,2]
[387458472,1758734928360,-500.0,0.00019175,2]
[387458473,1758734928394,-500.0,0.00019175,2]
[387458474,1758734928425,-500.0,0.00019175,2]
[387458475,1758734928456,-500.0,0.00019175,2]
[387458477,1758734934758,-500.0,0.00019175,2]
[387458478,1758734934788,-500.0,0.00019175,2]
[387458479,1758734934817,-500.0,0.00019175,2]
[387458480,1758734934848,-500.0,0.00019175,2]
[387458481,1758734934877,-500.0,0.00019175,2]
[387458482,1758734934905,-500.0,0.00019175,2]
[387458483,1758734934933,-500.0,0.00019175,2]
[387458484,1758734934960,-500.0,0.00019175,2]
[387458485,1758734934989,-500.0,0.00019175,2]